bitfinex/quotes_ETHUSD_20250517
["timestamp","ask_amount","ask_price","bid_price","bid_amount"]
[1747449090934,4.02187902,2486.4,2486.3,17.357]
[1747449091095,4.02187902,2486.4,2486.3,26.06]
[1747449092250,4.02187902,2486.4,2486.3,26.061]
[1747449094054,4.02172587,2486.5,2486.3,28.6671]
[1747449094259,4.02187902,2486.4,2486.3,19.9631]
[1747449094459,4.02187902,2486.4,2486.3,26.061]
[1747449100965,4.02187902,2486.4,2486.3,17.357]
[1747449101170,4.02187902,2486.4,2486.3,26.063]
[1747449101967,4.02187902,2486.4,2486.3,17.357]
[1747449102165,4.02187902,2486.4,2486.3,26.063]
[1747449102573,8.69,2486.4,2484.8,0.7579]
[1747449102866,4.02382102,2485.2,2485.1,17.367]
[1747449103747,4.02382102,2485.2,2485.1,26.073]
[1747449104674,4.02364735,2485.4,2485.1,28.6803]
[1747449104973,8.689,2486.1,2485.2,0.7579]
[1747449105174,4.02346265,2485.5,2485.2,0.7579]
[1747449105341,4.02349722,2485.4,2485.3,8.707]
[1747449105744,4.02382102,2485.2,2485.1,17.367]
[1747449106042,4.02374254,2485.3,2485.1,26.074]
[1747449106468,4.02382102,2485.2,2485.1,26.074]
[1747449106670,1.64160874,2486.0,2485.1,26.074]
[1747449106975,8.689,2485.9,2485.2,2.6074]
[1747449107171,4.02349722,2485.4,2485.3,8.708]
[1747449107756,4.02382102,2485.2,2485.1,17.367]
[1747449107948,4.02382102,2485.2,2485.1,26.075]
[1747449108572,4.0228744,2485.8,2485.1,26.075]
[1747449108573,8.687,2485.6,2485.1,26.075]
[1747449108759,4.02365785,2485.4,2485.1,26.075]
[1747449109078,12.70985838,2485.8,2485.1,28.75829]
[1747449109381,4.02365152,2485.4,2485.1,28.75829]
[1747449109567,4.02285838,2485.8,2485.1,28.75829]
[1747449109756,4.02382102,2485.2,2485.1,28.75829]
[1747449109955,4.02382102,2485.2,2485.1,26.076]
[1747449113059,4.02382102,2485.2,2485.1,26.053]
[1747449113957,4.02382102,2485.2,2485.1,26.054]
[1747449114159,4.02382102,2485.2,2485.1,17.367]
[1747449114359,4.02382102,2485.2,2485.1,26.054]
[1747449114758,4.02398293,2485.1,2485.0,8.687]
[1747449114975,4.02414486,2485.0,2484.9,8.687]
[1747449116180,8.04731822,2485.3,2484.4,18.1809]
[1747449116386,4.02479272,2484.6,2484.5,8.688]
[1747449116763,4.02495471,2484.5,2484.4,19.99899]
[1747449116962,4.02495471,2484.5,2484.4,28.68699]
[1747449117283,4.02495471,2484.5,2484.4,26.8689]
[1747449117693,4.02495471,2484.5,2484.4,26.062]
[1747449119479,4.02495471,2484.5,2484.4,26.063]
[1747449120751,4.02495471,2484.5,2484.4,17.374]
[1747449120990,4.02495471,2484.5,2484.4,26.063]
[1747449121362,4.02560283,2484.1,2484.0,0.6667]
[1747449121560,4.02560283,2484.1,2484.0,9.3557]
[1747449122050,4.02560283,2484.1,2484.0,9.3567]
[1747449122581,4.02560283,2484.1,2484.0,0.6667]
[1747449122781,12.70560283,2484.1,2484.0,0.6667]
[1747449123784,13.30560283,2484.1,2484.0,0.6667]
[1747449125469,4.62560283,2484.1,2484.0,0.6667]
[1747449125871,1.64160874,2484.9,2484.0,0.6667]
[1747449126098,4.02545695,2484.2,2484.1,0.7633]
[1747449126301,4.02545695,2484.2,2484.1,9.4543]
[1747449126463,4.02532954,2484.3,2484.1,9.4543]
[1747449126861,4.02544078,2484.2,2484.1,9.4543]
[1747449127593,4.02542328,2484.3,2484.1,9.4543]
[1747449128158,4.02544078,2484.2,2484.1,9.4543]
[1747449128897,4.02544078,2484.2,2484.1,0.7633]
[1747449129198,4.02560283,2484.1,2484.0,0.6667]
[1747449129390,4.02560283,2484.1,2484.0,9.3577]
[1747449131092,1.64160874,2485.2,2484.0,10.375]
[1747449131260,4.02460549,2484.8,2484.2,4.02532444]
[1747449131461,4.02438668,2484.9,2484.4,4.02503114]
[1747449131687,4.02382102,2485.2,2484.6,0.7967]
[1747449131898,4.02437406,2484.9,2484.7,17.383]
[1747449132059,4.02423829,2485.0,2484.7,17.383]
[1747449132396,4.02423829,2485.0,2484.8,1.81797]
[1747449133393,4.02446877,2484.8,2484.7,17.383]
[1747449133594,4.02446877,2484.8,2484.7,26.074]
[1747449136721,4.02428528,2485.0,2484.8,0.7605]
[1747449137123,4.02423983,2485.0,2484.8,0.7605]
[1747449137324,4.02406908,2485.1,2484.8,0.7605]
[1747449137638,4.0236119,2485.4,2484.9,4.02426054]
[1747449137809,4.0236119,2485.4,2485.0,0.7605]
[1747449138012,12.69099072,2485.8,2485.0,0.7605]
[1747449138013,4.02369547,2485.3,2485.0,0.7605]
[1747449138216,12.69099072,2485.8,2485.0,0.7605]
[1747449138217,4.02364503,2485.4,2485.0,0.7605]
[1747449138417,4.02339032,2485.5,2485.0,0.7605]
[1747449138752,4.02395535,2485.2,2485.1,8.69]
[1747449139097,4.02374761,2485.3,2485.1,8.69]
[1747449139331,4.02344386,2485.5,2485.1,8.69]
[1747449139543,4.02344386,2485.5,2485.2,0.7605]
[1747449140224,4.02333621,2485.5,2485.3,8.689]
[1747449140410,12.68837567,2486.1,2485.4,0.94495]
[1747449140738,4.02338266,2485.5,2485.2,9.4245]
[1747449140916,4.02338266,2485.5,2485.3,8.664]
[1747449141502,4.02268512,2486.0,2485.2,9.4245]
[1747449141735,4.02335254,2485.5,2485.3,8.664]
[1747449142045,4.02335254,2485.5,2485.2,0.7605]
[1747449142046,4.02335254,2485.5,2485.4,8.664]
[1747449142418,4.02326037,2485.6,2485.2,0.7605]
[1747449142636,4.02352547,2485.4,2485.3,8.664]
[1747449143804,4.02343124,2485.5,2485.3,8.664]
[1747449144004,4.02295407,2485.8,2485.4,0.7772]
[1747449144605,4.02303636,2485.7,2485.4,0.7772]
[1747449144829,4.02293338,2485.8,2485.5,1.34648562]
[1747449145031,4.02293338,2485.8,2485.6,17.377]
[1747449145430,4.02301162,2485.7,2485.6,17.377]
[1747449145615,4.02301162,2485.7,2485.6,26.04]
[1747449146144,4.02297851,2485.8,2485.7,0.7772]
[1747449148430,0.30191687,2486.6,2485.7,0.7772]
[1747449148431,4.02251234,2486.1,2485.7,2.72194803]
[1747449148738,4.02268796,2485.9,2485.8,9.4231]
[1747449148944,4.02187902,2486.4,2485.6,18.1381]
[1747449149160,4.02139144,2486.8,2485.6,18.1381]
[1747449149161,4.02171727,2486.5,2485.8,8.662]
[1747449149306,4.02245296,2486.1,2485.8,8.662]
[1747449149512,4.02171727,2486.5,2485.8,8.662]
[1747449149759,4.02231304,2486.2,2485.9,0.7611]
[1747449149932,4.02239321,2486.1,2485.9,0.7611]
[1747449150343,4.02207884,2486.3,2485.9,1.70341]
[1747449150526,4.02234895,2486.2,2485.9,1.70341]
[1747449150726,4.02252614,2486.0,2485.9,1.70341]
[1747449151954,4.02238868,2486.1,2485.9,1.70341]
[1747449152160,4.0197773,2487.7,2486.2,0.7636]
[1747449152325,4.238,2487.9,2486.2,0.7636]
[1747449152326,4.02187902,2486.4,2486.2,0.7636]
[1747449152528,4.02201758,2486.4,2486.3,8.661]
[1747449152880,4.02179909,2486.5,2486.3,8.661]
[1747449153011,10.29160874,2487.1,2485.9,1.70591]
[1747449153218,4.02214429,2486.3,2486.0,8.661]
[1747449153527,4.02183656,2486.5,2486.1,0.7636]
[1747449153734,4.02161066,2486.6,2486.1,4.78595392]
[1747449154249,4.02125239,2486.8,2486.2,8.661]
[1747449154453,4.02209427,2486.3,2486.2,8.661]
[1747449154827,4.02196006,2486.4,2486.2,8.661]
[1747449155512,4.02180305,2486.5,2486.2,8.661]
[1747449155717,4.02160364,2486.6,2486.2,8.661]
[1747449155948,4.02160364,2486.6,2486.1,0.7636]
[1747449156155,4.02171727,2486.5,2486.3,8.66]
[1747449157834,4.02187902,2486.4,2486.3,8.66]
[1747449159370,4.02301162,2485.7,2485.5,0.759]
[1747449159570,4.02240228,2486.1,2485.6,26.029]
[1747449159884,4.0228522,2485.8,2485.6,26.029]
[1747449160084,8.642,2486.4,2485.6,26.029]
[1747449160287,4.02191275,2486.4,2485.8,0.759]
[1747449160598,4.02156145,2486.6,2486.2,0.759]
[1747449160892,4.02089604,2487.1,2486.7,0.759]
[1747449161061,4.0210704,2486.9,2486.8,26.03]
[1747449161381,4.02099112,2487.0,2486.8,26.03]
[1747449161587,4.02020503,2487.5,2486.8,26.03]
[1747449161588,4.0210704,2486.9,2486.8,26.03]
[1747449163078,1.64160874,2488.0,2486.9,0.8317]
[1747449163250,4.02088609,2487.1,2486.9,1.94084346]
[1747449163446,4.02090872,2487.0,2486.9,1.94084346]
[1747449164890,4.0210704,2486.9,2486.8,17.37]
[1747449165100,4.0210704,2486.9,2486.8,26.029]
[1747449165663,4.0210704,2486.9,2486.8,17.37]
[1747449166404,4.0210704,2486.9,2486.8,26.029]
[1747449167157,4.0210704,2486.9,2486.8,17.37]
[1747449167362,4.0210704,2486.9,2486.8,26.028]
[1747449168799,12.6540704,2486.9,2486.8,26.028]
[1747449170760,4.0210704,2486.9,2486.8,26.028]
[1747449171992,3.9210704,2486.9,2486.8,26.028]
[1747449172516,3.9210704,2486.9,2486.8,26.001]
[1747449173234,3.9210704,2486.9,2486.8,28.6011]
[1747449175300,0.028176,2489.0,2487.0,0.8275]
[1747449175499,6.61433073,2488.8,2487.3,0.8275]
[1747449175828,4.02006646,2487.6,2487.3,0.8275]
[1747449175998,4.01850055,2488.5,2487.4,17.258]
[1747449175999,4.02010096,2487.5,2487.4,17.258]
[1747449176324,4.01998873,2487.6,2487.4,17.258]
[1747449176523,4.02016333,2487.5,2487.3,0.8275]
[1747449176821,4.01993889,2487.6,2487.5,8.631]
[1747449177026,4.01993889,2487.6,2487.5,9.57685]
[1747449177387,4.01985844,2487.7,2487.5,9.57685]
[1747449177621,4.01985844,2487.7,2487.5,0.94585]
[1747449177822,4.01993889,2487.6,2487.3,0.8275]
[1747449178126,4.01972544,2487.8,2487.6,8.631]
[1747449178328,4.01961572,2487.8,2487.7,17.367]
[1747449179124,4.01961572,2487.8,2487.7,25.998]
[1747449180203,4.01961572,2487.8,2487.7,28.5978]
[1747449180937,4.01961572,2487.8,2487.7,25.997]
[1747449181143,4.02090872,2487.0,2486.9,21.08691]
[1747449181305,4.02090872,2487.0,2486.9,25.994]
[1747449181835,4.02090872,2487.0,2486.9,17.364]
[1747449182034,4.02090872,2487.0,2486.9,25.994]
[1747449183204,4.02062791,2487.2,2486.9,25.994]
[1747449183426,4.02062791,2487.2,2487.0,2.5994]
[1747449183635,4.02074705,2487.1,2487.0,2.5994]
[1747449183944,4.02074705,2487.1,2486.9,17.364]
[1747449183945,4.02090872,2487.0,2486.9,17.364]
[1747449184331,4.02090872,2487.0,2486.9,25.994]
[1747449184533,4.02090872,2487.0,2486.9,17.364]
[1747449184706,4.02090872,2487.0,2486.9,8.63]
[1747449185103,4.02155553,2486.6,2486.5,17.364]
[1747449185308,4.02155553,2486.6,2486.5,25.994]
[1747449186309,4.02155553,2486.6,2486.5,28.5934]
[1747449186616,4.02155553,2486.6,2486.5,17.364]
[1747449186818,4.02155553,2486.6,2486.5,25.994]
[1747449188050,4.02155553,2486.6,2486.5,17.364]
[1747449188253,4.02155553,2486.6,2486.5,25.994]
[1747449189530,4.02155553,2486.6,2486.5,17.364]
[1747449189722,4.02155553,2486.6,2486.5,25.994]
[1747449192058,4.02139928,2486.7,2486.5,25.994]
[1747449192059,4.02153164,2486.7,2486.5,26.7808]
[1747449192221,4.02155553,2486.6,2486.5,26.7808]
[1747449192422,4.0214636,2486.7,2486.5,26.7808]
[1747449192722,4.02148465,2486.7,2486.5,26.7808]
[1747449192925,4.02129321,2486.8,2486.5,27.33651333]
[1747449193153,4.02150324,2486.7,2486.5,27.33651333]
[1747449194221,4.02155553,2486.6,2486.5,18.70651333]
[1747449194422,4.02100005,2487.0,2486.5,30.80349458]
[1747449194622,4.02100005,2487.0,2486.7,0.7868]
[1747449194960,4.02081986,2487.1,2486.7,0.7868]
[1747449195123,4.02091201,2487.0,2486.7,0.7868]
[1747449196949,4.02091201,2487.0,2486.7,9.3978]
[1747449197158,4.02091201,2487.0,2486.8,0.93978]
[1747449197329,4.02091201,2487.0,2486.9,8.63]
[1747449197862,4.02081846,2487.1,2486.9,8.63]
[1747449198225,4.02090872,2487.0,2486.9,8.63]
[1747449200369,4.02116068,2486.9,2486.7,0.7868]
[1747449200664,4.0212321,2486.8,2486.7,0.7868]
[1747449200853,4.0212321,2486.8,2486.7,12.09268]
[1747449201052,4.02155553,2486.6,2486.5,17.364]
[1747449201244,4.02155553,2486.6,2486.5,25.971]
[1747449201647,4.02155553,2486.6,2486.5,17.364]
[1747449202331,4.02155553,2486.6,2486.5,25.971]
[1747449202530,4.02155553,2486.6,2486.5,17.364]
[1747449202740,4.02155553,2486.6,2486.5,25.971]
[1747449202952,4.02155553,2486.6,2486.5,17.364]
[1747449203145,4.02155553,2486.6,2486.5,25.971]
[1747449206268,4.02155553,2486.6,2486.5,17.364]
[1747449206448,4.02155553,2486.6,2486.5,25.972]
[1747449206653,4.02155553,2486.6,2486.5,17.364]
[1747449206854,4.02155553,2486.6,2486.5,25.972]
[1747449207378,1.64160874,2486.6,2485.6,0.7829]
[1747449207675,4.02340666,2485.5,2485.1,0.7829]
[1747449207839,4.02301162,2485.7,2485.2,25.974]
[1747449208040,4.02365911,2485.3,2485.2,25.974]
[1747449208576,4.02365911,2485.3,2485.2,17.366]
[1747449208876,4.02365911,2485.3,2485.2,25.974]
[1747449211699,4.02365911,2485.3,2485.2,26.734]
[1747449212508,4.02365911,2485.3,2485.2,17.366]
[1747449212800,4.02365911,2485.3,2485.2,25.976]
[1747449213703,4.02269639,2485.9,2485.2,27.78671945]
[1747449213997,4.02324994,2485.6,2485.3,0.76]
[1747449214206,4.02337007,2485.5,2485.3,0.76]
[1747449214380,4.02349722,2485.4,2485.3,0.76]
[1747449215395,4.02365911,2485.3,2485.2,17.366]
[1747449215601,4.02365911,2485.3,2485.2,25.976]
[1747449215766,4.02365911,2485.3,2485.2,17.366]
[1747449215971,4.02365911,2485.3,2485.2,25.976]
[1747449219419,4.02365911,2485.3,2485.2,25.977]
[1747449219613,4.02365911,2485.3,2485.2,17.366]
[1747449219779,4.02365911,2485.3,2485.2,25.977]
[1747449220537,4.02365911,2485.3,2485.2,17.366]
[1747449220680,4.02365911,2485.3,2485.2,25.977]
[1747449221713,4.02365911,2485.3,2485.2,25.978]
[1747449221921,4.02365911,2485.3,2485.2,17.366]
[1747449222085,4.02365911,2485.3,2485.2,25.978]
[1747449226739,4.02365911,2485.3,2485.2,17.366]
[1747449226903,4.02365911,2485.3,2485.2,25.979]
[1747449229741,4.02365911,2485.3,2485.2,17.366]
[1747449229940,4.02365911,2485.3,2485.2,25.979]
[1747449231244,12.61065911,2485.3,2485.2,25.979]
[1747449231551,4.02365911,2485.3,2485.2,25.979]
[1747449233054,4.02365911,2485.3,2485.2,17.366]
[1747449233221,4.02365911,2485.3,2485.2,25.953]
[1747449236749,4.02365911,2485.3,2485.2,17.366]
[1747449236952,4.02365911,2485.3,2485.2,25.954]
[1747449237375,12.60565911,2485.3,2485.2,25.954]
[1747449238077,4.02365911,2485.3,2485.2,25.954]
[1747449238282,12.60465911,2485.3,2485.2,25.954]
[1747449240378,12.60465911,2485.3,2485.2,17.366]
[1747449240589,12.60465911,2485.3,2485.2,25.954]
[1747449242161,4.52365911,2485.3,2485.2,25.954]
[1747449242361,13.10065911,2485.3,2485.2,25.954]
[1747449243298,4.52365911,2485.3,2485.2,25.954]
[1747449243794,4.52365911,2485.3,2485.2,26.7303]
[1747449244104,4.02365911,2485.3,2485.2,29.40333]
[1747449244758,4.02278113,2485.9,2485.2,28.62703]
[1747449244960,4.02278113,2485.9,2485.3,0.7763]
[1747449245161,4.02346878,2485.5,2485.3,0.7763]
[1747449246299,4.02349722,2485.4,2485.3,0.7763]
[1747449246478,4.02349722,2485.4,2485.3,3.716633]
[1747449246796,4.02349722,2485.4,2485.3,12.304633]
[1747449247805,1.64160874,2486.1,2485.3,12.304633]
[1747449247970,4.02316448,2485.7,2485.5,0.7962]
[1747449248172,4.02288801,2485.8,2485.6,0.7962]
[1747449248772,4.02263034,2486.0,2485.6,0.83642721]
[1747449249105,4.02286588,2485.8,2485.6,0.7962]
[1747449249510,4.02155553,2486.6,2485.6,0.7962]
[1747449249711,4.02284978,2485.8,2485.7,0.20326764]
[1747449249914,4.02301162,2485.7,2485.6,0.7962]
[1747449250118,4.02301162,2485.7,2485.6,9.3832]
[1747449250681,4.02293665,2485.8,2485.6,9.3832]
[1747449250882,4.02278771,2485.9,2485.6,9.3832]
[1747449251080,4.02278771,2485.9,2485.7,0.93832]
[1747449251310,4.02278771,2485.9,2485.8,0.7901]
[1747449253139,4.02340092,2485.5,2485.4,0.7901]
[1747449253296,4.02325682,2485.6,2485.4,9.3761]
[1747449253498,4.02310376,2485.7,2485.4,9.3761]
[1747449253685,4.02310376,2485.7,2485.5,1.2316433]
[1747449254914,4.02317347,2485.6,2485.5,1.2316433]
[1747449255119,4.02303057,2485.7,2485.5,25.961]
[1747449255326,4.02317347,2485.6,2485.5,25.961]
[1747449257925,4.02317347,2485.6,2485.5,17.375]
[1747449258088,4.02317347,2485.6,2485.5,25.961]
[1747449259187,4.02317347,2485.6,2485.5,17.375]
[1747449259433,4.02317347,2485.6,2485.5,25.961]
[1747449259616,4.52317347,2485.6,2485.5,25.961]
[1747449260451,4.02243102,2486.1,2485.5,28.55875655]
[1747449260728,4.02312085,2485.7,2485.5,28.55875655]
[1747449261028,4.02317347,2485.6,2485.5,19.97275655]
[1747449261330,4.02310027,2485.7,2485.6,8.586]
[1747449261840,4.02310027,2485.7,2485.6,11.44187565]
[1747449262219,4.02310027,2485.7,2485.6,2.85587565]
[1747449262532,4.02310027,2485.7,2485.6,11.41187565]
[1747449263014,4.02310027,2485.7,2485.6,2.85587565]
[1747449263220,4.02310027,2485.7,2485.6,11.41187565]
[1747449263730,4.02310027,2485.7,2485.6,2.85587565]
[1747449263923,4.02317347,2485.6,2485.5,18.1485]
[1747449264230,4.02317347,2485.6,2485.5,26.7045]
[1747449265854,4.02277786,2485.9,2485.5,26.7045]
[1747449266063,4.02204078,2486.3,2485.5,26.7045]
[1747449266215,4.0227383,2485.9,2485.6,2.67045]
[1747449266653,4.02287214,2485.8,2485.6,2.67045]
[1747449267248,4.02301162,2485.7,2485.6,2.67045]
[1747449267564,4.02317347,2485.6,2485.5,18.1485]
[1747449267730,4.02317347,2485.6,2485.5,26.7045]
[1747449268067,4.02317347,2485.6,2485.5,18.1485]
[1747449268255,4.02317347,2485.6,2485.5,26.7045]
[1747449269279,4.02317347,2485.6,2485.5,17.375]
[1747449269427,4.02317347,2485.6,2485.5,25.931]
[1747449271356,4.02317347,2485.6,2485.5,28.5241]
[1747449273363,4.02317347,2485.6,2485.5,25.931]
[1747449274479,4.02238136,2486.1,2485.5,25.931]
[1747449274762,4.02292389,2485.8,2485.6,0.8215]
[1747449275161,8.544,2486.4,2485.6,0.8215]
[1747449275162,4.02274277,2485.9,2485.6,0.8215]
[1747449275366,4.0228593,2485.8,2485.6,0.8215]
[1747449275664,4.0228593,2485.8,2485.7,2.67525]
[1747449275866,4.02239662,2486.1,2485.7,2.71547732]
[1747449276050,4.02239662,2486.1,2485.7,2.67525]
[1747449276359,4.02238796,2486.1,2485.7,2.67525]
[1747449277329,4.02261568,2486.0,2485.7,2.67525]
[1747449277566,4.02224254,2486.2,2485.8,0.349675]
[1747449277772,4.02224254,2486.2,2485.9,0.8284]
[1747449277773,4.02228202,2486.2,2485.9,0.8284]
[1747449277928,2.02273349,2486.5,2486.1,0.8284]
[1747449278133,2.02273349,2486.5,2486.0,8.59522]
[1747449278134,2.02273349,2486.5,2486.4,4.02187902]
[1747449278342,2.02273349,2486.5,2486.4,30.76327902]
[1747449278677,2.02273349,2486.5,2486.4,34.24180871]
[1747449279080,1.18943349,2486.5,2486.4,42.24180871]
[1747449279284,2.59623632,2487.2,2486.9,4.02095919]
[1747449279585,2.02505013,2487.1,2487.0,13.80640464]
[1747449280255,2.02505013,2487.1,2487.0,22.10678467]
[1747449282352,2.02505013,2487.1,2487.0,22.65678467]
[1747449282543,0.66027333,2487.1,2487.0,22.65678467]
[1747449282753,4.0191744,2488.1,2487.6,0.7819]
[1747449282982,4.0191744,2488.1,2487.7,34.93618866]
[1747449283281,4.01836344,2488.6,2487.7,34.93618866]
[1747449283484,0.785676,2489.0,2487.9,0.7819]
[1747449283788,4.01823418,2488.7,2488.1,0.7819]
[1747449283971,4.01838858,2488.6,2488.2,18.36610357]
[1747449284157,4.01812154,2488.8,2488.3,4.80069834]
[1747449284513,4.01812154,2488.8,2488.3,0.7819]
[1747449285183,4.01812154,2488.8,2488.3,4.80068252]
[1747449285365,4.01812154,2488.8,2488.3,7.51927295]
[1747449285557,0.028176,2489.0,2488.3,3.50049043]
[1747449285886,0.028176,2489.0,2488.5,4.01848503]
[1747449286057,0.028176,2489.0,2488.6,17.365]
[1747449286256,4.04590805,2489.0,2488.7,8.551]
[1747449286475,4.01793142,2488.9,2488.7,8.551]
[1747449287199,0.028176,2489.0,2488.8,0.821]
[1747449288180,0.028176,2489.0,2488.9,8.549]
[1747449290555,0.028176,2489.0,2488.8,0.821]
[1747449290750,0.028176,2489.0,2488.9,8.547]
[1747449292184,0.028176,2489.0,2488.7,12.01816173]
[1747449292394,4.0459667,2489.0,2488.8,8.52]
[1747449292578,0.028176,2489.0,2488.8,8.52]
[1747449292779,4.04593327,2489.0,2488.8,8.52]
[1747449292961,4.04593327,2489.0,2488.9,8.52]
[1747449293154,0.028176,2489.0,2488.9,8.52]
[1747449293356,4.04585378,2489.0,2488.9,8.52]
[1747449294180,4.01798939,2488.9,2488.6,17.365]
[1747449294389,4.01798939,2488.9,2488.7,8.518]
[1747449294588,4.01800064,2488.8,2488.6,17.365]
[1747449294767,4.01800064,2488.8,2488.7,8.518]
[1747449295477,4.01800064,2488.8,2488.7,25.872]
[1747449297357,4.01800064,2488.8,2488.7,17.354]
[1747449297558,4.01800064,2488.8,2488.7,25.872]
[1747449299596,12.53000064,2488.8,2488.7,17.354]
[1747449299900,13.35920064,2488.8,2488.7,17.354]
[1747449300089,13.35920064,2488.8,2488.7,25.872]
[1747449301712,13.35920064,2488.8,2488.7,17.354]
[1747449301863,0.8147,2488.4,2487.4,17.354]
[1747449302063,4.01943291,2488.0,2487.6,0.7743]
[1747449302263,4.01953691,2487.9,2487.6,0.7743]
[1747449302499,4.01953691,2487.9,2487.7,0.92923]
[1747449302798,9.3247,2488.3,2487.7,0.92923]
[1747449302799,4.0189088,2488.3,2487.8,0.7743]
[1747449303103,9.3237,2488.9,2487.9,8.518]
[1747449303104,4.0192064,2488.1,2487.9,8.518]
[1747449303312,4.01903131,2488.2,2487.8,0.7743]
[1747449303521,4.01913106,2488.1,2488.0,8.518]
[1747449303682,4.01814214,2488.8,2488.0,9.44723]
[1747449303883,0.8147,2488.9,2488.1,0.04018908]
[1747449304115,0.8147,2488.9,2488.1,0.7743]
[1747449304383,12.55489047,2489.0,2488.1,0.7743]
[1747449304384,4.01812121,2488.8,2488.1,13.3415855]
[1747449304612,4.01816411,2488.7,2488.1,13.30140079]
[1747449304803,4.01816411,2488.7,2488.1,9.2823]
[1747449305004,4.01816411,2488.7,2488.2,2.18195269]
[1747449305319,4.01816411,2488.7,2488.3,17.354]
[1747449305715,4.01842735,2488.6,2488.3,17.354]
[1747449306723,0.028176,2489.0,2488.3,17.354]
[1747449306724,4.0178392,2488.9,2488.3,17.354]
[1747449307043,4.01864651,2488.4,2488.3,17.354]
[1747449307227,4.81194651,2488.4,2488.3,25.872]
[1747449307394,4.81194651,2488.4,2488.3,17.354]
[1747449307730,4.81194651,2488.4,2488.3,25.872]
[1747449308478,13.31694651,2488.4,2488.3,25.872]
[1747449309176,4.81194651,2488.4,2488.3,25.872]
[1747449309382,13.31694651,2488.4,2488.3,25.872]
[1747449309617,4.02052687,2487.3,2487.1,0.816]
[1747449309788,4.01913106,2488.1,2487.2,17.354]
[1747449309989,0.7933,2487.9,2487.3,8.519]
[1747449310218,4.02042375,2487.3,2487.2,17.354]
[1747449310420,4.81372375,2487.3,2487.2,25.873]
[1747449311010,13.31672375,2487.3,2487.2,25.873]
[1747449311533,4.02042375,2487.3,2487.2,25.873]
[1747449313609,4.02042375,2487.3,2487.2,25.874]
[1747449313828,4.02042375,2487.3,2487.2,17.354]
[1747449314039,4.02042375,2487.3,2487.2,25.875]
[1747449316439,4.02042375,2487.3,2487.2,17.354]
[1747449316650,4.02042375,2487.3,2487.2,25.875]
[1747449317746,4.78992375,2487.3,2487.2,25.875]
[1747449318939,4.02042375,2487.3,2487.2,25.875]
[1747449320351,4.78992375,2487.3,2487.2,25.875]
[1747449320512,13.28892375,2487.3,2487.2,25.875]
[1747449321262,13.28892375,2487.3,2487.2,17.354]
[1747449321561,13.28892375,2487.3,2484.7,4.0244693]
[1747449321562,4.02196713,2486.4,2486.2,0.7576]
[1747449321742,4.02177413,2486.5,2486.3,25.883]
[1747449321920,4.02187902,2486.4,2486.3,25.883]
[1747449322443,4.02187902,2486.4,2486.3,25.859]
[1747449324322,4.02187902,2486.4,2486.3,17.361]
[1747449324561,4.02187902,2486.4,2486.3,25.86]
[1747449326250,4.02187902,2486.4,2486.3,25.861]
[1747449327729,0.8041,2487.3,2486.4,0.8241]
[1747449327931,4.02171727,2486.5,2486.4,0.8241]
[1747449328932,4.02171727,2486.5,2486.4,9.3241]
[1747449329452,4.02187902,2486.4,2486.3,17.361]
[1747449329656,4.02187902,2486.4,2486.3,25.861]
[1747449331219,4.02187902,2486.4,2486.3,17.361]
[1747449331724,4.02187902,2486.4,2486.3,25.861]
[1747449332521,4.79597902,2486.4,2486.3,25.861]
[1747449333821,4.79597902,2486.4,2486.3,17.361]
[1747449334022,4.79597902,2486.4,2486.3,25.861]
[1747449334248,4.79597902,2486.4,2486.3,17.361]
[1747449334456,4.79597902,2486.4,2486.2,8.5]
[1747449334770,4.79597902,2486.4,2484.6,4.0246747]
[1747449334771,4.79711162,2485.7,2485.6,17.366]
[1747449334922,4.79711162,2485.7,2485.6,25.866]
[1747449335267,4.79711162,2485.7,2485.6,17.366]
[1747449335472,4.02382102,2485.2,2485.1,8.501]
[1747449335617,4.02349722,2485.4,2485.1,8.501]
[1747449335823,4.02382102,2485.2,2485.1,8.501]
[1747449336759,4.02382102,2485.2,2484.7,17.368]
[1747449336760,4.02446877,2484.8,2484.7,17.368]
[1747449336955,4.02446877,2484.8,2484.7,25.869]
[1747449337557,4.02446877,2484.8,2484.7,28.45643013]
[1747449338785,4.02446877,2484.8,2484.7,25.871]
[1747449340138,4.02446877,2484.8,2484.7,17.368]
[1747449340366,4.02446877,2484.8,2484.7,25.871]
[1747449340726,4.02446877,2484.8,2484.7,17.368]
[1747449340944,4.02446877,2484.8,2484.7,25.871]
[1747449341887,4.02446877,2484.8,2484.7,17.368]
[1747449345190,4.02400335,2485.1,2484.7,17.368]
[1747449345359,4.0243309,2484.9,2484.7,17.368]
[1747449345560,4.02446877,2484.8,2484.7,17.368]
[1747449345745,4.02446877,2484.8,2484.7,25.873]
[1747449346887,4.02446877,2484.8,2484.7,17.368]
[1747449347117,4.02446877,2484.8,2484.7,25.873]
[1747449349753,4.02446877,2484.8,2484.7,17.368]
[1747449349955,4.02446877,2484.8,2484.7,25.873]
[1747449349956,4.84606877,2484.8,2484.7,25.873]
[1747449351071,4.02446877,2484.8,2484.7,25.873]
[1747449352681,4.02446877,2484.8,2484.7,25.851]
[1747449352891,4.02446877,2484.8,2484.7,17.368]
[1747449353056,4.02446877,2484.8,2484.7,25.852]
[1747449353251,5.19116877,2484.8,2484.7,25.852]
[1747449353564,4.52446877,2484.8,2484.7,25.852]
[1747449353868,4.52446877,2484.8,2484.7,17.368]
[1747449354075,4.52446877,2484.8,2484.7,25.852]
[1747449354600,5.35176877,2484.8,2484.7,25.852]
[1747449355184,5.35176877,2484.8,2484.7,17.368]
[1747449355367,5.35176877,2484.8,2484.7,25.852]
[1747449355755,5.35176877,2484.8,2484.7,17.368]
[1747449355995,5.90176877,2484.8,2484.7,17.368]
[1747449357777,4.02463074,2484.7,2484.6,8.484]